{"text_format":"3","workbook":"xlsx","n_sheets":4,"sheets":["ETKİNLİKLER","TAKVİM","YAZDIRMA SÜRÜMÜ","YÖNETİCİ"],"not_rendered":{"defined_names":18},"read":"whole","date_system":"1900"}

{"sheet":"ETKİNLİKLER","index":0,"n_rows":38,"n_cols":5,"rows_kept":38}
[]
[null,"AYLIK TOPLULUK"]
[null,"OLAY PLANLAYICISI"]
[]
[]
[]
[]
[null,"TARİH","GÜN","AY","OLAY ADI"]
[null,"2016-07-01",{"$f":"IF(ISBLANK(tblEvents[[#This Row],[TARİH]]),\"\",UPPER(TEXT(tblEvents[[#This Row],[TARİH]],\"ggg\")))","v":"CUM"},{"$f":"IF(ISBLANK(tblEvents[[#This Row],[TARİH]]),\"\",UPPER(TEXT(tblEvents[[#This Row],[TARİH]],\"aaa\")))","v":"TEM"},"Hobi Bahçesi"]
[null,"2016-07-01",{"$f":"IF(ISBLANK(tblEvents[[#This Row],[TARİH]]),\"\",UPPER(TEXT(tblEvents[[#This Row],[TARİH]],\"ggg\")))","v":"CUM"},{"$f":"IF(ISBLANK(tblEvents[[#This Row],[TARİH]]),\"\",UPPER(TEXT(tblEvents[[#This Row],[TARİH]],\"aaa\")))","v":"TEM"},"Şehir Meclisi"]
[null,"2016-07-02",{"$f":"IF(ISBLANK(tblEvents[[#This Row],[TARİH]]),\"\",UPPER(TEXT(tblEvents[[#This Row],[TARİH]],\"ggg\")))","v":"CMT"},{"$f":"IF(ISBLANK(tblEvents[[#This Row],[TARİH]]),\"\",UPPER(TEXT(tblEvents[[#This Row],[TARİH]],\"aaa\")))","v":"TEM"},"Hobi Bahçesi"]
[null,"2016-07-03",{"$f":"IF(ISBLANK(tblEvents[[#This Row],[TARİH]]),\"\",UPPER(TEXT(tblEvents[[#This Row],[TARİH]],\"ggg\")))","v":"PAZ"},{"$f":"IF(ISBLANK(tblEvents[[#This Row],[TARİH]]),\"\",UPPER(TEXT(tblEvents[[#This Row],[TARİH]],\"aaa\")))","v":"TEM"},"Parkta Film Gecesi"]
[null,"2016-07-08",{"$f":"IF(ISBLANK(tblEvents[[#This Row],[TARİH]]),\"\",UPPER(TEXT(tblEvents[[#This Row],[TARİH]],\"ggg\")))","v":"CUM"},{"$f":"IF(ISBLANK(tblEvents[[#This Row],[TARİH]]),\"\",UPPER(TEXT(tblEvents[[#This Row],[TARİH]],\"aaa\")))","v":"TEM"},"Şehir Meclisi"]
[null,"2016-07-11",{"$f":"IF(ISBLANK(tblEvents[[#This Row],[TARİH]]),\"\",UPPER(TEXT(tblEvents[[#This Row],[TARİH]],\"ggg\")))","v":"PZT"},{"$f":"IF(ISBLANK(tblEvents[[#This Row],[TARİH]]),\"\",UPPER(TEXT(tblEvents[[#This Row],[TARİH]],\"aaa\")))","v":"TEM"},"Ticaret Odası Öğle Yemeği"]
[null,"2016-07-12",{"$f":"IF(ISBLANK(tblEvents[[#This Row],[TARİH]]),\"\",UPPER(TEXT(tblEvents[[#This Row],[TARİH]],\"ggg\")))","v":"SAL"},{"$f":"IF(ISBLANK(tblEvents[[#This Row],[TARİH]]),\"\",UPPER(TEXT(tblEvents[[#This Row],[TARİH]],\"aaa\")))","v":"TEM"},"Eski Eserler Gösterisi"]
[null,"2016-07-14",{"$f":"IF(ISBLANK(tblEvents[[#This Row],[TARİH]]),\"\",UPPER(TEXT(tblEvents[[#This Row],[TARİH]],\"ggg\")))","v":"PER"},{"$f":"IF(ISBLANK(tblEvents[[#This Row],[TARİH]]),\"\",UPPER(TEXT(tblEvents[[#This Row],[TARİH]],\"aaa\")))","v":"TEM"},"Topluluk Çalıştayı"]
[null,"2016-07-15",{"$f":"IF(ISBLANK(tblEvents[[#This Row],[TARİH]]),\"\",UPPER(TEXT(tblEvents[[#This Row],[TARİH]],\"ggg\")))","v":"CUM"},{"$f":"IF(ISBLANK(tblEvents[[#This Row],[TARİH]]),\"\",UPPER(TEXT(tblEvents[[#This Row],[TARİH]],\"aaa\")))","v":"TEM"},"Şehir Meclisi"]
[null,"2016-07-19",{"$f":"IF(ISBLANK(tblEvents[[#This Row],[TARİH]]),\"\",UPPER(TEXT(tblEvents[[#This Row],[TARİH]],\"ggg\")))","v":"SAL"},{"$f":"IF(ISBLANK(tblEvents[[#This Row],[TARİH]]),\"\",UPPER(TEXT(tblEvents[[#This Row],[TARİH]],\"aaa\")))","v":"TEM"},"Stratejik Planlama Çalıştayı"]
[null,"2016-07-20",{"$f":"IF(ISBLANK(tblEvents[[#This Row],[TARİH]]),\"\",UPPER(TEXT(tblEvents[[#This Row],[TARİH]],\"ggg\")))","v":"ÇAR"},{"$f":"IF(ISBLANK(tblEvents[[#This Row],[TARİH]]),\"\",UPPER(TEXT(tblEvents[[#This Row],[TARİH]],\"aaa\")))","v":"TEM"},"Park Temizliği"]
[null,"2016-07-22",{"$f":"IF(ISBLANK(tblEvents[[#This Row],[TARİH]]),\"\",UPPER(TEXT(tblEvents[[#This Row],[TARİH]],\"ggg\")))","v":"CUM"},{"$f":"IF(ISBLANK(tblEvents[[#This Row],[TARİH]]),\"\",UPPER(TEXT(tblEvents[[#This Row],[TARİH]],\"aaa\")))","v":"TEM"},"Şehir Meclisi"]
[null,"2016-07-26",{"$f":"IF(ISBLANK(tblEvents[[#This Row],[TARİH]]),\"\",UPPER(TEXT(tblEvents[[#This Row],[TARİH]],\"ggg\")))","v":"SAL"},{"$f":"IF(ISBLANK(tblEvents[[#This Row],[TARİH]]),\"\",UPPER(TEXT(tblEvents[[#This Row],[TARİH]],\"aaa\")))","v":"TEM"},"Şehir Merkezinde Yürüyüş Turu"]
[null,"2016-07-26",{"$f":"IF(ISBLANK(tblEvents[[#This Row],[TARİH]]),\"\",UPPER(TEXT(tblEvents[[#This Row],[TARİH]],\"ggg\")))","v":"SAL"},{"$f":"IF(ISBLANK(tblEvents[[#This Row],[TARİH]]),\"\",UPPER(TEXT(tblEvents[[#This Row],[TARİH]],\"aaa\")))","v":"TEM"},"Barlarda Gezinme"]
[null,"2016-07-29",{"$f":"IF(ISBLANK(tblEvents[[#This Row],[TARİH]]),\"\",UPPER(TEXT(tblEvents[[#This Row],[TARİH]],\"ggg\")))","v":"CUM"},{"$f":"IF(ISBLANK(tblEvents[[#This Row],[TARİH]]),\"\",UPPER(TEXT(tblEvents[[#This Row],[TARİH]],\"aaa\")))","v":"TEM"},"Şehir Meclisi"]
[null,"2016-08-05",{"$f":"IF(ISBLANK(tblEvents[[#This Row],[TARİH]]),\"\",UPPER(TEXT(tblEvents[[#This Row],[TARİH]],\"ggg\")))","v":"CUM"},{"$f":"IF(ISBLANK(tblEvents[[#This Row],[TARİH]]),\"\",UPPER(TEXT(tblEvents[[#This Row],[TARİH]],\"aaa\")))","v":"AĞU"},"Şehir Meclisi"]
[null,"2016-08-10",{"$f":"IF(ISBLANK(tblEvents[[#This Row],[TARİH]]),\"\",UPPER(TEXT(tblEvents[[#This Row],[TARİH]],\"ggg\")))","v":"ÇAR"},{"$f":"IF(ISBLANK(tblEvents[[#This Row],[TARİH]]),\"\",UPPER(TEXT(tblEvents[[#This Row],[TARİH]],\"aaa\")))","v":"AĞU"},"Park Temizliği"]
[null,"2016-08-12",{"$f":"IF(ISBLANK(tblEvents[[#This Row],[TARİH]]),\"\",UPPER(TEXT(tblEvents[[#This Row],[TARİH]],\"ggg\")))","v":"CUM"},{"$f":"IF(ISBLANK(tblEvents[[#This Row],[TARİH]]),\"\",UPPER(TEXT(tblEvents[[#This Row],[TARİH]],\"aaa\")))","v":"AĞU"},"Şehir Meclisi"]
[null,"2016-08-13",{"$f":"IF(ISBLANK(tblEvents[[#This Row],[TARİH]]),\"\",UPPER(TEXT(tblEvents[[#This Row],[TARİH]],\"ggg\")))","v":"CMT"},{"$f":"IF(ISBLANK(tblEvents[[#This Row],[TARİH]]),\"\",UPPER(TEXT(tblEvents[[#This Row],[TARİH]],\"aaa\")))","v":"AĞU"},"Hobi Bahçesi"]
[null,"2016-09-01",{"$f":"IF(ISBLANK(tblEvents[[#This Row],[TARİH]]),\"\",UPPER(TEXT(tblEvents[[#This Row],[TARİH]],\"ggg\")))","v":"PER"},{"$f":"IF(ISBLANK(tblEvents[[#This Row],[TARİH]]),\"\",UPPER(TEXT(tblEvents[[#This Row],[TARİH]],\"aaa\")))","v":"EYL"},"Bütçe Kurulu"]
[null,"2016-10-01",{"$f":"IF(ISBLANK(tblEvents[[#This Row],[TARİH]]),\"\",UPPER(TEXT(tblEvents[[#This Row],[TARİH]],\"ggg\")))","v":"CMT"},{"$f":"IF(ISBLANK(tblEvents[[#This Row],[TARİH]]),\"\",UPPER(TEXT(tblEvents[[#This Row],[TARİH]],\"aaa\")))","v":"EKİ"},"Bütçe Kurulu"]
[null,"2016-11-03",{"$f":"IF(ISBLANK(tblEvents[[#This Row],[TARİH]]),\"\",UPPER(TEXT(tblEvents[[#This Row],[TARİH]],\"ggg\")))","v":"PER"},{"$f":"IF(ISBLANK(tblEvents[[#This Row],[TARİH]]),\"\",UPPER(TEXT(tblEvents[[#This Row],[TARİH]],\"aaa\")))","v":"KAS"},"Bütçe Kurulu"]
[null,"2016-12-01",{"$f":"IF(ISBLANK(tblEvents[[#This Row],[TARİH]]),\"\",UPPER(TEXT(tblEvents[[#This Row],[TARİH]],\"ggg\")))","v":"PER"},{"$f":"IF(ISBLANK(tblEvents[[#This Row],[TARİH]]),\"\",UPPER(TEXT(tblEvents[[#This Row],[TARİH]],\"aaa\")))","v":"ARA"},"Bütçe Kurulu"]
[null,"2017-01-01",{"$f":"IF(ISBLANK(tblEvents[[#This Row],[TARİH]]),\"\",UPPER(TEXT(tblEvents[[#This Row],[TARİH]],\"ggg\")))","v":"PAZ"},{"$f":"IF(ISBLANK(tblEvents[[#This Row],[TARİH]]),\"\",UPPER(TEXT(tblEvents[[#This Row],[TARİH]],\"aaa\")))","v":"OCA"},"Bütçe Kurulu"]
[null,"2017-02-02",{"$f":"IF(ISBLANK(tblEvents[[#This Row],[TARİH]]),\"\",UPPER(TEXT(tblEvents[[#This Row],[TARİH]],\"ggg\")))","v":"PER"},{"$f":"IF(ISBLANK(tblEvents[[#This Row],[TARİH]]),\"\",UPPER(TEXT(tblEvents[[#This Row],[TARİH]],\"aaa\")))","v":"ŞUB"},"Bütçe Kurulu"]
[null,"2017-03-02",{"$f":"IF(ISBLANK(tblEvents[[#This Row],[TARİH]]),\"\",UPPER(TEXT(tblEvents[[#This Row],[TARİH]],\"ggg\")))","v":"PER"},{"$f":"IF(ISBLANK(tblEvents[[#This Row],[TARİH]]),\"\",UPPER(TEXT(tblEvents[[#This Row],[TARİH]],\"aaa\")))","v":"MAR"},"Bütçe Kurulu"]
[null,"2017-04-01",{"$f":"IF(ISBLANK(tblEvents[[#This Row],[TARİH]]),\"\",UPPER(TEXT(tblEvents[[#This Row],[TARİH]],\"ggg\")))","v":"CMT"},{"$f":"IF(ISBLANK(tblEvents[[#This Row],[TARİH]]),\"\",UPPER(TEXT(tblEvents[[#This Row],[TARİH]],\"aaa\")))","v":"NİS"},"Bütçe Kurulu"]
[null,"2017-05-01",{"$f":"IF(ISBLANK(tblEvents[[#This Row],[TARİH]]),\"\",UPPER(TEXT(tblEvents[[#This Row],[TARİH]],\"ggg\")))","v":"PZT"},{"$f":"IF(ISBLANK(tblEvents[[#This Row],[TARİH]]),\"\",UPPER(TEXT(tblEvents[[#This Row],[TARİH]],\"aaa\")))","v":"MAY"},"Bütçe Kurulu"]
[null,"2017-06-01",{"$f":"IF(ISBLANK(tblEvents[[#This Row],[TARİH]]),\"\",UPPER(TEXT(tblEvents[[#This Row],[TARİH]],\"ggg\")))","v":"PER"},{"$f":"IF(ISBLANK(tblEvents[[#This Row],[TARİH]]),\"\",UPPER(TEXT(tblEvents[[#This Row],[TARİH]],\"aaa\")))","v":"HAZ"},"Bütçe Kurulu"]
[null,"2017-06-02",{"$f":"IF(ISBLANK(tblEvents[[#This Row],[TARİH]]),\"\",UPPER(TEXT(tblEvents[[#This Row],[TARİH]],\"ggg\")))","v":"CUM"},{"$f":"IF(ISBLANK(tblEvents[[#This Row],[TARİH]]),\"\",UPPER(TEXT(tblEvents[[#This Row],[TARİH]],\"aaa\")))","v":"HAZ"},"Şehir Meclisi"]

{"sheet":"TAKVİM","index":1,"n_rows":35,"n_cols":21,"rows_kept":35,"merged":[[1,5,1,11],[30,8,34,20]]}
[]
[null,null,2016,null,null,{"$f":"LOOKUP(AySayısı,tblMonths[SAYI],tblMonths[AY])","v":"TEMMUZ"}]
[null,null,7,null,null,{"$f":"DATE(ViewYear,AySayısı,1)","v":"2016-07-01"},null,null,{"$f":"WEEKDAY(BaşlangıçTarihi)","v":6}]
[null,null,"PZT",null,null,"SAL",null,null,"ÇAR",null,null,"PER",null,null,"CUM",null,null,"CTS",null,null,"PAZ"]
[]
[null,null,{"$f":"BaşlangıçTarihi-(WEEKDAY(BaşlangıçTarihi)-2)+{0;1;2;3;4;5}*7 +{1,2,3,4,5,6,7}-3+COLUMN(B1)","v":"2016-06-27"},null,null,{"$f":"BaşlangıçTarihi-(WEEKDAY(BaşlangıçTarihi)-2)+{0;1;2;3;4;5}*7 +{1,2,3,4,5,6,7}-3+COLUMN(C1)","v":"2016-06-28"},null,null,{"$f":"BaşlangıçTarihi-(WEEKDAY(BaşlangıçTarihi)-2)+{0;1;2;3;4;5}*7 +{1,2,3,4,5,6,7}-3+COLUMN(D1)","v":"2016-06-29"},null,null,{"$f":"BaşlangıçTarihi-(WEEKDAY(BaşlangıçTarihi)-2)+{0;1;2;3;4;5}*7 +{1,2,3,4,5,6,7}-3+COLUMN(E1)","v":"2016-06-30"},null,null,{"$f":"BaşlangıçTarihi-(WEEKDAY(BaşlangıçTarihi)-2)+{0;1;2;3;4;5}*7 +{1,2,3,4,5,6,7}-3+COLUMN(F1)","v":"2016-07-01"},null,null,{"$f":"BaşlangıçTarihi-(WEEKDAY(BaşlangıçTarihi)-2)+{0;1;2;3;4;5}*7 +{1,2,3,4,5,6,7}-3+COLUMN(G1)","v":"2016-07-02"},null,null,{"$f":"BaşlangıçTarihi-(WEEKDAY(BaşlangıçTarihi)-2)+{0;1;2;3;4;5}*7 +{1,2,3,4,5,6,7}-3+COLUMN(H1)","v":"2016-07-03"}]
[null,null,{"$f":"IFERROR(INDEX(tblEvents[],SMALL(IF(Tarihler=C$6,ROW(Tarihler)),ROW(1:1))-TabloSatırıBaşlangıcı,4),\"\")","v":""},null,null,{"$f":"IFERROR(INDEX(tblEvents[],SMALL(IF(Tarihler=F$6,ROW(Tarihler)),ROW(1:1))-TabloSatırıBaşlangıcı,4),\"\")","v":""},null,null,{"$f":"IFERROR(INDEX(tblEvents[],SMALL(IF(Tarihler=I$6,ROW(Tarihler)),ROW(1:1))-TabloSatırıBaşlangıcı,4),\"\")","v":""},null,null,{"$f":"IFERROR(INDEX(tblEvents[],SMALL(IF(Tarihler=L$6,ROW(Tarihler)),ROW(1:1))-TabloSatırıBaşlangıcı,4),\"\")","v":""},null,null,{"$f":"IFERROR(INDEX(tblEvents[],SMALL(IF(Tarihler=O$6,ROW(Tarihler)),ROW(1:1))-TabloSatırıBaşlangıcı,4),\"\")","v":"Hobi Bahçesi"},null,null,{"$f":"IFERROR(INDEX(tblEvents[],SMALL(IF(Tarihler=R$6,ROW(Tarihler)),ROW(1:1))-TabloSatırıBaşlangıcı,4),\"\")","v":"Hobi Bahçesi"},null,null,{"$f":"IFERROR(INDEX(tblEvents[],SMALL(IF(Tarihler=U$6,ROW(Tarihler)),ROW(1:1))-TabloSatırıBaşlangıcı,4),\"\")","v":"Parkta Film Gecesi"}]
[null,null,{"$f":"IFERROR(INDEX(tblEvents[],SMALL(IF(Tarihler=C$6,ROW(Tarihler)),ROW(2:2))-TabloSatırıBaşlangıcı,4),\"\")","v":""},null,null,{"$f":"IFERROR(INDEX(tblEvents[],SMALL(IF(Tarihler=F$6,ROW(Tarihler)),ROW(2:2))-TabloSatırıBaşlangıcı,4),\"\")","v":""},null,null,{"$f":"IFERROR(INDEX(tblEvents[],SMALL(IF(Tarihler=I$6,ROW(Tarihler)),ROW(2:2))-TabloSatırıBaşlangıcı,4),\"\")","v":""},null,null,{"$f":"IFERROR(INDEX(tblEvents[],SMALL(IF(Tarihler=L$6,ROW(Tarihler)),ROW(2:2))-TabloSatırıBaşlangıcı,4),\"\")","v":""},null,null,{"$f":"IFERROR(INDEX(tblEvents[],SMALL(IF(Tarihler=O$6,ROW(Tarihler)),ROW(2:2))-TabloSatırıBaşlangıcı,4),\"\")","v":"Şehir Meclisi"},null,null,{"$f":"IFERROR(INDEX(tblEvents[],SMALL(IF(Tarihler=R$6,ROW(Tarihler)),ROW(2:2))-TabloSatırıBaşlangıcı,4),\"\")","v":""},null,null,{"$f":"IFERROR(INDEX(tblEvents[],SMALL(IF(Tarihler=U$6,ROW(Tarihler)),ROW(2:2))-TabloSatırıBaşlangıcı,4),\"\")","v":""}]
[null,null,{"$f":"IFERROR(INDEX(tblEvents[],SMALL(IF(Tarihler=C$6,ROW(Tarihler)),ROW(3:3))-TabloSatırıBaşlangıcı,4),\"\")","v":""},null,null,{"$f":"IFERROR(INDEX(tblEvents[],SMALL(IF(Tarihler=F$6,ROW(Tarihler)),ROW(3:3))-TabloSatırıBaşlangıcı,4),\"\")","v":""},null,null,{"$f":"IFERROR(INDEX(tblEvents[],SMALL(IF(Tarihler=I$6,ROW(Tarihler)),ROW(3:3))-TabloSatırıBaşlangıcı,4),\"\")","v":""},null,null,{"$f":"IFERROR(INDEX(tblEvents[],SMALL(IF(Tarihler=L$6,ROW(Tarihler)),ROW(3:3))-TabloSatırıBaşlangıcı,4),\"\")","v":""},null,null,{"$f":"IFERROR(INDEX(tblEvents[],SMALL(IF(Tarihler=O$6,ROW(Tarihler)),ROW(3:3))-TabloSatırıBaşlangıcı,4),\"\")","v":""},null,null,{"$f":"IFERROR(INDEX(tblEvents[],SMALL(IF(Tarihler=R$6,ROW(Tarihler)),ROW(3:3))-TabloSatırıBaşlangıcı,4),\"\")","v":""},null,null,{"$f":"IFERROR(INDEX(tblEvents[],SMALL(IF(Tarihler=U$6,ROW(Tarihler)),ROW(3:3))-TabloSatırıBaşlangıcı,4),\"\")","v":""}]
[null,null,{"$f":"IFERROR(INDEX(tblEvents[],SMALL(IF(Tarihler=C$6,ROW(Tarihler)),ROW(4:4))-TabloSatırıBaşlangıcı,4),\"\")","v":""},null,null,{"$f":"IFERROR(INDEX(tblEvents[],SMALL(IF(Tarihler=F$6,ROW(Tarihler)),ROW(4:4))-TabloSatırıBaşlangıcı,4),\"\")","v":""},null,null,{"$f":"IFERROR(INDEX(tblEvents[],SMALL(IF(Tarihler=I$6,ROW(Tarihler)),ROW(4:4))-TabloSatırıBaşlangıcı,4),\"\")","v":""},null,null,{"$f":"IFERROR(INDEX(tblEvents[],SMALL(IF(Tarihler=L$6,ROW(Tarihler)),ROW(4:4))-TabloSatırıBaşlangıcı,4),\"\")","v":""},null,null,{"$f":"IFERROR(INDEX(tblEvents[],SMALL(IF(Tarihler=O$6,ROW(Tarihler)),ROW(4:4))-TabloSatırıBaşlangıcı,4),\"\")","v":""},null,null,{"$f":"IFERROR(INDEX(tblEvents[],SMALL(IF(Tarihler=R$6,ROW(Tarihler)),ROW(4:4))-TabloSatırıBaşlangıcı,4),\"\")","v":""},null,null,{"$f":"IFERROR(INDEX(tblEvents[],SMALL(IF(Tarihler=U$6,ROW(Tarihler)),ROW(4:4))-TabloSatırıBaşlangıcı,4),\"\")","v":""}]
[null,null,{"$f":"U6+1","v":"2016-07-04"},null,null,{"$f":"C11+1","v":"2016-07-05"},null,null,{"$f":"F11+1","v":"2016-07-06"},null,null,{"$f":"I11+1","v":"2016-07-07"},null,null,{"$f":"L11+1","v":"2016-07-08"},null,null,{"$f":"O11+1","v":"2016-07-09"},null,null,{"$f":"R11+1","v":"2016-07-10"}]
[null,null,{"$f":"IFERROR(INDEX(tblEvents[],SMALL(IF(Tarihler=C$11,ROW(Tarihler)),ROW(1:1))-TabloSatırıBaşlangıcı,4),\"\")","v":""},null,null,{"$f":"IFERROR(INDEX(tblEvents[],SMALL(IF(Tarihler=F$11,ROW(Tarihler)),ROW(1:1))-TabloSatırıBaşlangıcı,4),\"\")","v":""},null,null,{"$f":"IFERROR(INDEX(tblEvents[],SMALL(IF(Tarihler=I$11,ROW(Tarihler)),ROW(1:1))-TabloSatırıBaşlangıcı,4),\"\")","v":""},null,null,{"$f":"IFERROR(INDEX(tblEvents[],SMALL(IF(Tarihler=L$11,ROW(Tarihler)),ROW(1:1))-TabloSatırıBaşlangıcı,4),\"\")","v":""},null,null,{"$f":"IFERROR(INDEX(tblEvents[],SMALL(IF(Tarihler=O$11,ROW(Tarihler)),ROW(1:1))-TabloSatırıBaşlangıcı,4),\"\")","v":"Şehir Meclisi"},null,null,{"$f":"IFERROR(INDEX(tblEvents[],SMALL(IF(Tarihler=R$11,ROW(Tarihler)),ROW(1:1))-TabloSatırıBaşlangıcı,4),\"\")","v":""},null,null,{"$f":"IFERROR(INDEX(tblEvents[],SMALL(IF(Tarihler=U$11,ROW(Tarihler)),ROW(1:1))-TabloSatırıBaşlangıcı,4),\"\")","v":""}]
[null,null,{"$f":"IFERROR(INDEX(tblEvents[],SMALL(IF(Tarihler=C$11,ROW(Tarihler)),ROW(2:2))-TabloSatırıBaşlangıcı,4),\"\")","v":""},null,null,{"$f":"IFERROR(INDEX(tblEvents[],SMALL(IF(Tarihler=F$11,ROW(Tarihler)),ROW(2:2))-TabloSatırıBaşlangıcı,4),\"\")","v":""},null,null,{"$f":"IFERROR(INDEX(tblEvents[],SMALL(IF(Tarihler=I$11,ROW(Tarihler)),ROW(2:2))-TabloSatırıBaşlangıcı,4),\"\")","v":""},null,null,{"$f":"IFERROR(INDEX(tblEvents[],SMALL(IF(Tarihler=L$11,ROW(Tarihler)),ROW(2:2))-TabloSatırıBaşlangıcı,4),\"\")","v":""},null,null,{"$f":"IFERROR(INDEX(tblEvents[],SMALL(IF(Tarihler=O$11,ROW(Tarihler)),ROW(2:2))-TabloSatırıBaşlangıcı,4),\"\")","v":""},null,null,{"$f":"IFERROR(INDEX(tblEvents[],SMALL(IF(Tarihler=R$11,ROW(Tarihler)),ROW(2:2))-TabloSatırıBaşlangıcı,4),\"\")","v":""},null,null,{"$f":"IFERROR(INDEX(tblEvents[],SMALL(IF(Tarihler=U$11,ROW(Tarihler)),ROW(2:2))-TabloSatırıBaşlangıcı,4),\"\")","v":""}]
[null,null,{"$f":"IFERROR(INDEX(tblEvents[],SMALL(IF(Tarihler=C$11,ROW(Tarihler)),ROW(3:3))-TabloSatırıBaşlangıcı,4),\"\")","v":""},null,null,{"$f":"IFERROR(INDEX(tblEvents[],SMALL(IF(Tarihler=F$11,ROW(Tarihler)),ROW(3:3))-TabloSatırıBaşlangıcı,4),\"\")","v":""},null,null,{"$f":"IFERROR(INDEX(tblEvents[],SMALL(IF(Tarihler=I$11,ROW(Tarihler)),ROW(3:3))-TabloSatırıBaşlangıcı,4),\"\")","v":""},null,null,{"$f":"IFERROR(INDEX(tblEvents[],SMALL(IF(Tarihler=L$11,ROW(Tarihler)),ROW(3:3))-TabloSatırıBaşlangıcı,4),\"\")","v":""},null,null,{"$f":"IFERROR(INDEX(tblEvents[],SMALL(IF(Tarihler=O$11,ROW(Tarihler)),ROW(3:3))-TabloSatırıBaşlangıcı,4),\"\")","v":""},null,null,{"$f":"IFERROR(INDEX(tblEvents[],SMALL(IF(Tarihler=R$11,ROW(Tarihler)),ROW(3:3))-TabloSatırıBaşlangıcı,4),\"\")","v":""},null,null,{"$f":"IFERROR(INDEX(tblEvents[],SMALL(IF(Tarihler=U$11,ROW(Tarihler)),ROW(3:3))-TabloSatırıBaşlangıcı,4),\"\")","v":""}]
[null,null,{"$f":"IFERROR(INDEX(tblEvents[],SMALL(IF(Tarihler=C$11,ROW(Tarihler)),ROW(4:4))-TabloSatırıBaşlangıcı,4),\"\")","v":""},null,null,{"$f":"IFERROR(INDEX(tblEvents[],SMALL(IF(Tarihler=F$11,ROW(Tarihler)),ROW(4:4))-TabloSatırıBaşlangıcı,4),\"\")","v":""},null,null,{"$f":"IFERROR(INDEX(tblEvents[],SMALL(IF(Tarihler=I$11,ROW(Tarihler)),ROW(4:4))-TabloSatırıBaşlangıcı,4),\"\")","v":""},null,null,{"$f":"IFERROR(INDEX(tblEvents[],SMALL(IF(Tarihler=L$11,ROW(Tarihler)),ROW(4:4))-TabloSatırıBaşlangıcı,4),\"\")","v":""},null,null,{"$f":"IFERROR(INDEX(tblEvents[],SMALL(IF(Tarihler=O$11,ROW(Tarihler)),ROW(4:4))-TabloSatırıBaşlangıcı,4),\"\")","v":""},null,null,{"$f":"IFERROR(INDEX(tblEvents[],SMALL(IF(Tarihler=R$11,ROW(Tarihler)),ROW(4:4))-TabloSatırıBaşlangıcı,4),\"\")","v":""},null,null,{"$f":"IFERROR(INDEX(tblEvents[],SMALL(IF(Tarihler=U$11,ROW(Tarihler)),ROW(4:4))-TabloSatırıBaşlangıcı,4),\"\")","v":""}]
[null,null,{"$f":"U11+1","v":"2016-07-11"},null,null,{"$f":"C16+1","v":"2016-07-12"},null,null,{"$f":"F16+1","v":"2016-07-13"},null,null,{"$f":"I16+1","v":"2016-07-14"},null,null,{"$f":"L16+1","v":"2016-07-15"},null,null,{"$f":"O16+1","v":"2016-07-16"},null,null,{"$f":"R16+1","v":"2016-07-17"}]
[null,null,{"$f":"IFERROR(INDEX(tblEvents[],SMALL(IF(Tarihler=C$16,ROW(Tarihler)),ROW(1:1))-TabloSatırıBaşlangıcı,4),\"\")","v":"Ticaret Odası Öğle Yemeği"},null,null,{"$f":"IFERROR(INDEX(tblEvents[],SMALL(IF(Tarihler=F$16,ROW(Tarihler)),ROW(1:1))-TabloSatırıBaşlangıcı,4),\"\")","v":"Eski Eserler Gösterisi"},null,null,{"$f":"IFERROR(INDEX(tblEvents[],SMALL(IF(Tarihler=I$16,ROW(Tarihler)),ROW(1:1))-TabloSatırıBaşlangıcı,4),\"\")","v":""},null,null,{"$f":"IFERROR(INDEX(tblEvents[],SMALL(IF(Tarihler=L$16,ROW(Tarihler)),ROW(1:1))-TabloSatırıBaşlangıcı,4),\"\")","v":"Topluluk Çalıştayı"},null,null,{"$f":"IFERROR(INDEX(tblEvents[],SMALL(IF(Tarihler=O$16,ROW(Tarihler)),ROW(1:1))-TabloSatırıBaşlangıcı,4),\"\")","v":"Şehir Meclisi"},null,null,{"$f":"IFERROR(INDEX(tblEvents[],SMALL(IF(Tarihler=R$16,ROW(Tarihler)),ROW(1:1))-TabloSatırıBaşlangıcı,4),\"\")","v":""},null,null,{"$f":"IFERROR(INDEX(tblEvents[],SMALL(IF(Tarihler=U$16,ROW(Tarihler)),ROW(1:1))-TabloSatırıBaşlangıcı,4),\"\")","v":""}]
[null,null,{"$f":"IFERROR(INDEX(tblEvents[],SMALL(IF(Tarihler=C$16,ROW(Tarihler)),ROW(2:2))-TabloSatırıBaşlangıcı,4),\"\")","v":""},null,null,{"$f":"IFERROR(INDEX(tblEvents[],SMALL(IF(Tarihler=F$16,ROW(Tarihler)),ROW(2:2))-TabloSatırıBaşlangıcı,4),\"\")","v":""},null,null,{"$f":"IFERROR(INDEX(tblEvents[],SMALL(IF(Tarihler=I$16,ROW(Tarihler)),ROW(2:2))-TabloSatırıBaşlangıcı,4),\"\")","v":""},null,null,{"$f":"IFERROR(INDEX(tblEvents[],SMALL(IF(Tarihler=L$16,ROW(Tarihler)),ROW(2:2))-TabloSatırıBaşlangıcı,4),\"\")","v":""},null,null,{"$f":"IFERROR(INDEX(tblEvents[],SMALL(IF(Tarihler=O$16,ROW(Tarihler)),ROW(2:2))-TabloSatırıBaşlangıcı,4),\"\")","v":""},null,null,{"$f":"IFERROR(INDEX(tblEvents[],SMALL(IF(Tarihler=R$16,ROW(Tarihler)),ROW(2:2))-TabloSatırıBaşlangıcı,4),\"\")","v":""},null,null,{"$f":"IFERROR(INDEX(tblEvents[],SMALL(IF(Tarihler=U$16,ROW(Tarihler)),ROW(2:2))-TabloSatırıBaşlangıcı,4),\"\")","v":""}]
[null,null,{"$f":"IFERROR(INDEX(tblEvents[],SMALL(IF(Tarihler=C$16,ROW(Tarihler)),ROW(3:3))-TabloSatırıBaşlangıcı,4),\"\")","v":""},null,null,{"$f":"IFERROR(INDEX(tblEvents[],SMALL(IF(Tarihler=F$16,ROW(Tarihler)),ROW(3:3))-TabloSatırıBaşlangıcı,4),\"\")","v":""},null,null,{"$f":"IFERROR(INDEX(tblEvents[],SMALL(IF(Tarihler=I$16,ROW(Tarihler)),ROW(3:3))-TabloSatırıBaşlangıcı,4),\"\")","v":""},null,null,{"$f":"IFERROR(INDEX(tblEvents[],SMALL(IF(Tarihler=L$16,ROW(Tarihler)),ROW(3:3))-TabloSatırıBaşlangıcı,4),\"\")","v":""},null,null,{"$f":"IFERROR(INDEX(tblEvents[],SMALL(IF(Tarihler=O$16,ROW(Tarihler)),ROW(3:3))-TabloSatırıBaşlangıcı,4),\"\")","v":""},null,null,{"$f":"IFERROR(INDEX(tblEvents[],SMALL(IF(Tarihler=R$16,ROW(Tarihler)),ROW(3:3))-TabloSatırıBaşlangıcı,4),\"\")","v":""},null,null,{"$f":"IFERROR(INDEX(tblEvents[],SMALL(IF(Tarihler=U$16,ROW(Tarihler)),ROW(3:3))-TabloSatırıBaşlangıcı,4),\"\")","v":""}]
[null,null,{"$f":"IFERROR(INDEX(tblEvents[],SMALL(IF(Tarihler=C$16,ROW(Tarihler)),ROW(4:4))-TabloSatırıBaşlangıcı,4),\"\")","v":""},null,null,{"$f":"IFERROR(INDEX(tblEvents[],SMALL(IF(Tarihler=F$16,ROW(Tarihler)),ROW(4:4))-TabloSatırıBaşlangıcı,4),\"\")","v":""},null,null,{"$f":"IFERROR(INDEX(tblEvents[],SMALL(IF(Tarihler=I$16,ROW(Tarihler)),ROW(4:4))-TabloSatırıBaşlangıcı,4),\"\")","v":""},null,null,{"$f":"IFERROR(INDEX(tblEvents[],SMALL(IF(Tarihler=L$16,ROW(Tarihler)),ROW(4:4))-TabloSatırıBaşlangıcı,4),\"\")","v":""},null,null,{"$f":"IFERROR(INDEX(tblEvents[],SMALL(IF(Tarihler=O$16,ROW(Tarihler)),ROW(4:4))-TabloSatırıBaşlangıcı,4),\"\")","v":""},null,null,{"$f":"IFERROR(INDEX(tblEvents[],SMALL(IF(Tarihler=R$16,ROW(Tarihler)),ROW(4:4))-TabloSatırıBaşlangıcı,4),\"\")","v":""},null,null,{"$f":"IFERROR(INDEX(tblEvents[],SMALL(IF(Tarihler=U$16,ROW(Tarihler)),ROW(4:4))-TabloSatırıBaşlangıcı,4),\"\")","v":""}]
[null,null,{"$f":"U16+1","v":"2016-07-18"},null,null,{"$f":"C21+1","v":"2016-07-19"},null,null,{"$f":"F21+1","v":"2016-07-20"},null,null,{"$f":"I21+1","v":"2016-07-21"},null,null,{"$f":"L21+1","v":"2016-07-22"},null,null,{"$f":"O21+1","v":"2016-07-23"},null,null,{"$f":"R21+1","v":"2016-07-24"}]
[null,null,{"$f":"IFERROR(INDEX(tblEvents[],SMALL(IF(Tarihler=C$21,ROW(Tarihler)),ROW(1:1))-TabloSatırıBaşlangıcı,4),\"\")","v":""},null,null,{"$f":"IFERROR(INDEX(tblEvents[],SMALL(IF(Tarihler=F$21,ROW(Tarihler)),ROW(1:1))-TabloSatırıBaşlangıcı,4),\"\")","v":"Stratejik Planlama Çalıştayı"},null,null,{"$f":"IFERROR(INDEX(tblEvents[],SMALL(IF(Tarihler=I$21,ROW(Tarihler)),ROW(1:1))-TabloSatırıBaşlangıcı,4),\"\")","v":"Park Temizliği"},null,null,{"$f":"IFERROR(INDEX(tblEvents[],SMALL(IF(Tarihler=L$21,ROW(Tarihler)),ROW(1:1))-TabloSatırıBaşlangıcı,4),\"\")","v":""},null,null,{"$f":"IFERROR(INDEX(tblEvents[],SMALL(IF(Tarihler=O$21,ROW(Tarihler)),ROW(1:1))-TabloSatırıBaşlangıcı,4),\"\")","v":"Şehir Meclisi"},null,null,{"$f":"IFERROR(INDEX(tblEvents[],SMALL(IF(Tarihler=R$21,ROW(Tarihler)),ROW(1:1))-TabloSatırıBaşlangıcı,4),\"\")","v":""},null,null,{"$f":"IFERROR(INDEX(tblEvents[],SMALL(IF(Tarihler=U$21,ROW(Tarihler)),ROW(1:1))-TabloSatırıBaşlangıcı,4),\"\")","v":""}]
[null,null,{"$f":"IFERROR(INDEX(tblEvents[],SMALL(IF(Tarihler=C$21,ROW(Tarihler)),ROW(2:2))-TabloSatırıBaşlangıcı,4),\"\")","v":""},null,null,{"$f":"IFERROR(INDEX(tblEvents[],SMALL(IF(Tarihler=F$21,ROW(Tarihler)),ROW(2:2))-TabloSatırıBaşlangıcı,4),\"\")","v":""},null,null,{"$f":"IFERROR(INDEX(tblEvents[],SMALL(IF(Tarihler=I$21,ROW(Tarihler)),ROW(2:2))-TabloSatırıBaşlangıcı,4),\"\")","v":""},null,null,{"$f":"IFERROR(INDEX(tblEvents[],SMALL(IF(Tarihler=L$21,ROW(Tarihler)),ROW(2:2))-TabloSatırıBaşlangıcı,4),\"\")","v":""},null,null,{"$f":"IFERROR(INDEX(tblEvents[],SMALL(IF(Tarihler=O$21,ROW(Tarihler)),ROW(2:2))-TabloSatırıBaşlangıcı,4),\"\")","v":""},null,null,{"$f":"IFERROR(INDEX(tblEvents[],SMALL(IF(Tarihler=R$21,ROW(Tarihler)),ROW(2:2))-TabloSatırıBaşlangıcı,4),\"\")","v":""},null,null,{"$f":"IFERROR(INDEX(tblEvents[],SMALL(IF(Tarihler=U$21,ROW(Tarihler)),ROW(2:2))-TabloSatırıBaşlangıcı,4),\"\")","v":""}]
[null,null,{"$f":"IFERROR(INDEX(tblEvents[],SMALL(IF(Tarihler=C$21,ROW(Tarihler)),ROW(3:3))-TabloSatırıBaşlangıcı,4),\"\")","v":""},null,null,{"$f":"IFERROR(INDEX(tblEvents[],SMALL(IF(Tarihler=F$21,ROW(Tarihler)),ROW(3:3))-TabloSatırıBaşlangıcı,4),\"\")","v":""},null,null,{"$f":"IFERROR(INDEX(tblEvents[],SMALL(IF(Tarihler=I$21,ROW(Tarihler)),ROW(3:3))-TabloSatırıBaşlangıcı,4),\"\")","v":""},null,null,{"$f":"IFERROR(INDEX(tblEvents[],SMALL(IF(Tarihler=L$21,ROW(Tarihler)),ROW(3:3))-TabloSatırıBaşlangıcı,4),\"\")","v":""},null,null,{"$f":"IFERROR(INDEX(tblEvents[],SMALL(IF(Tarihler=O$21,ROW(Tarihler)),ROW(3:3))-TabloSatırıBaşlangıcı,4),\"\")","v":""},null,null,{"$f":"IFERROR(INDEX(tblEvents[],SMALL(IF(Tarihler=R$21,ROW(Tarihler)),ROW(3:3))-TabloSatırıBaşlangıcı,4),\"\")","v":""},null,null,{"$f":"IFERROR(INDEX(tblEvents[],SMALL(IF(Tarihler=U$21,ROW(Tarihler)),ROW(3:3))-TabloSatırıBaşlangıcı,4),\"\")","v":""}]
[null,null,{"$f":"IFERROR(INDEX(tblEvents[],SMALL(IF(Tarihler=C$21,ROW(Tarihler)),ROW(4:4))-TabloSatırıBaşlangıcı,4),\"\")","v":""},null,null,{"$f":"IFERROR(INDEX(tblEvents[],SMALL(IF(Tarihler=F$21,ROW(Tarihler)),ROW(4:4))-TabloSatırıBaşlangıcı,4),\"\")","v":""},null,null,{"$f":"IFERROR(INDEX(tblEvents[],SMALL(IF(Tarihler=I$21,ROW(Tarihler)),ROW(4:4))-TabloSatırıBaşlangıcı,4),\"\")","v":""},null,null,{"$f":"IFERROR(INDEX(tblEvents[],SMALL(IF(Tarihler=L$21,ROW(Tarihler)),ROW(4:4))-TabloSatırıBaşlangıcı,4),\"\")","v":""},null,null,{"$f":"IFERROR(INDEX(tblEvents[],SMALL(IF(Tarihler=O$21,ROW(Tarihler)),ROW(4:4))-TabloSatırıBaşlangıcı,4),\"\")","v":""},null,null,{"$f":"IFERROR(INDEX(tblEvents[],SMALL(IF(Tarihler=R$21,ROW(Tarihler)),ROW(4:4))-TabloSatırıBaşlangıcı,4),\"\")","v":""},null,null,{"$f":"IFERROR(INDEX(tblEvents[],SMALL(IF(Tarihler=U$21,ROW(Tarihler)),ROW(4:4))-TabloSatırıBaşlangıcı,4),\"\")","v":""}]
[null,null,{"$f":"U21+1","v":"2016-07-25"},null,null,{"$f":"C26+1","v":"2016-07-26"},null,null,{"$f":"F26+1","v":"2016-07-27"},null,null,{"$f":"I26+1","v":"2016-07-28"},null,null,{"$f":"L26+1","v":"2016-07-29"},null,null,{"$f":"O26+1","v":"2016-07-30"},null,null,{"$f":"R26+1","v":"2016-07-31"}]
[null,null,{"$f":"IFERROR(INDEX(tblEvents[],SMALL(IF(Tarihler=C$26,ROW(Tarihler)),ROW(1:1))-TabloSatırıBaşlangıcı,4),\"\")","v":""},null,null,{"$f":"IFERROR(INDEX(tblEvents[],SMALL(IF(Tarihler=F$26,ROW(Tarihler)),ROW(1:1))-TabloSatırıBaşlangıcı,4),\"\")","v":"Şehir Merkezinde Yürüyüş Turu"},null,null,{"$f":"IFERROR(INDEX(tblEvents[],SMALL(IF(Tarihler=I$26,ROW(Tarihler)),ROW(1:1))-TabloSatırıBaşlangıcı,4),\"\")","v":""},null,null,{"$f":"IFERROR(INDEX(tblEvents[],SMALL(IF(Tarihler=L$26,ROW(Tarihler)),ROW(1:1))-TabloSatırıBaşlangıcı,4),\"\")","v":""},null,null,{"$f":"IFERROR(INDEX(tblEvents[],SMALL(IF(Tarihler=O$26,ROW(Tarihler)),ROW(1:1))-TabloSatırıBaşlangıcı,4),\"\")","v":"Şehir Meclisi"},null,null,{"$f":"IFERROR(INDEX(tblEvents[],SMALL(IF(Tarihler=R$26,ROW(Tarihler)),ROW(1:1))-TabloSatırıBaşlangıcı,4),\"\")","v":""},null,null,{"$f":"IFERROR(INDEX(tblEvents[],SMALL(IF(Tarihler=U$26,ROW(Tarihler)),ROW(1:1))-TabloSatırıBaşlangıcı,4),\"\")","v":""}]
[null,null,{"$f":"IFERROR(INDEX(tblEvents[],SMALL(IF(Tarihler=C$26,ROW(Tarihler)),ROW(2:2))-TabloSatırıBaşlangıcı,4),\"\")","v":""},null,null,{"$f":"IFERROR(INDEX(tblEvents[],SMALL(IF(Tarihler=F$26,ROW(Tarihler)),ROW(2:2))-TabloSatırıBaşlangıcı,4),\"\")","v":"Barlarda Gezinme"},null,null,{"$f":"IFERROR(INDEX(tblEvents[],SMALL(IF(Tarihler=I$26,ROW(Tarihler)),ROW(2:2))-TabloSatırıBaşlangıcı,4),\"\")","v":""},null,null,{"$f":"IFERROR(INDEX(tblEvents[],SMALL(IF(Tarihler=L$26,ROW(Tarihler)),ROW(2:2))-TabloSatırıBaşlangıcı,4),\"\")","v":""},null,null,{"$f":"IFERROR(INDEX(tblEvents[],SMALL(IF(Tarihler=O$26,ROW(Tarihler)),ROW(2:2))-TabloSatırıBaşlangıcı,4),\"\")","v":""},null,null,{"$f":"IFERROR(INDEX(tblEvents[],SMALL(IF(Tarihler=R$26,ROW(Tarihler)),ROW(2:2))-TabloSatırıBaşlangıcı,4),\"\")","v":""},null,null,{"$f":"IFERROR(INDEX(tblEvents[],SMALL(IF(Tarihler=U$26,ROW(Tarihler)),ROW(2:2))-TabloSatırıBaşlangıcı,4),\"\")","v":""}]
[null,null,{"$f":"IFERROR(INDEX(tblEvents[],SMALL(IF(Tarihler=C$26,ROW(Tarihler)),ROW(3:3))-TabloSatırıBaşlangıcı,4),\"\")","v":""},null,null,{"$f":"IFERROR(INDEX(tblEvents[],SMALL(IF(Tarihler=F$26,ROW(Tarihler)),ROW(3:3))-TabloSatırıBaşlangıcı,4),\"\")","v":""},null,null,{"$f":"IFERROR(INDEX(tblEvents[],SMALL(IF(Tarihler=I$26,ROW(Tarihler)),ROW(3:3))-TabloSatırıBaşlangıcı,4),\"\")","v":""},null,null,{"$f":"IFERROR(INDEX(tblEvents[],SMALL(IF(Tarihler=L$26,ROW(Tarihler)),ROW(3:3))-TabloSatırıBaşlangıcı,4),\"\")","v":""},null,null,{"$f":"IFERROR(INDEX(tblEvents[],SMALL(IF(Tarihler=O$26,ROW(Tarihler)),ROW(3:3))-TabloSatırıBaşlangıcı,4),\"\")","v":""},null,null,{"$f":"IFERROR(INDEX(tblEvents[],SMALL(IF(Tarihler=R$26,ROW(Tarihler)),ROW(3:3))-TabloSatırıBaşlangıcı,4),\"\")","v":""},null,null,{"$f":"IFERROR(INDEX(tblEvents[],SMALL(IF(Tarihler=U$26,ROW(Tarihler)),ROW(3:3))-TabloSatırıBaşlangıcı,4),\"\")","v":""}]
[null,null,{"$f":"IFERROR(INDEX(tblEvents[],SMALL(IF(Tarihler=C$26,ROW(Tarihler)),ROW(4:4))-TabloSatırıBaşlangıcı,4),\"\")","v":""},null,null,{"$f":"IFERROR(INDEX(tblEvents[],SMALL(IF(Tarihler=F$26,ROW(Tarihler)),ROW(4:4))-TabloSatırıBaşlangıcı,4),\"\")","v":""},null,null,{"$f":"IFERROR(INDEX(tblEvents[],SMALL(IF(Tarihler=I$26,ROW(Tarihler)),ROW(4:4))-TabloSatırıBaşlangıcı,4),\"\")","v":""},null,null,{"$f":"IFERROR(INDEX(tblEvents[],SMALL(IF(Tarihler=L$26,ROW(Tarihler)),ROW(4:4))-TabloSatırıBaşlangıcı,4),\"\")","v":""},null,null,{"$f":"IFERROR(INDEX(tblEvents[],SMALL(IF(Tarihler=O$26,ROW(Tarihler)),ROW(4:4))-TabloSatırıBaşlangıcı,4),\"\")","v":""},null,null,{"$f":"IFERROR(INDEX(tblEvents[],SMALL(IF(Tarihler=R$26,ROW(Tarihler)),ROW(4:4))-TabloSatırıBaşlangıcı,4),\"\")","v":""},null,null,{"$f":"IFERROR(INDEX(tblEvents[],SMALL(IF(Tarihler=U$26,ROW(Tarihler)),ROW(4:4))-TabloSatırıBaşlangıcı,4),\"\")","v":""}]
[null,null,{"$f":"U26+1","v":"2016-08-01"},null,null,{"$f":"C31+1","v":"2016-08-02"},null,null,"NOTLAR:"]
[null,null,{"$f":"IFERROR(INDEX(tblEvents[],SMALL(IF(Tarihler=C$31,ROW(Tarihler)),ROW(1:1))-TabloSatırıBaşlangıcı,4),\"\")","v":""},null,null,{"$f":"IFERROR(INDEX(tblEvents[],SMALL(IF(Tarihler=F$31,ROW(Tarihler)),ROW(1:1))-TabloSatırıBaşlangıcı,4),\"\")","v":""}]
[null,null,{"$f":"IFERROR(INDEX(tblEvents[],SMALL(IF(Tarihler=C$31,ROW(Tarihler)),ROW(2:2))-TabloSatırıBaşlangıcı,4),\"\")","v":""},null,null,{"$f":"IFERROR(INDEX(tblEvents[],SMALL(IF(Tarihler=F$31,ROW(Tarihler)),ROW(2:2))-TabloSatırıBaşlangıcı,4),\"\")","v":""}]
[null,null,{"$f":"IFERROR(INDEX(tblEvents[],SMALL(IF(Tarihler=C$31,ROW(Tarihler)),ROW(3:3))-TabloSatırıBaşlangıcı,4),\"\")","v":""},null,null,{"$f":"IFERROR(INDEX(tblEvents[],SMALL(IF(Tarihler=F$31,ROW(Tarihler)),ROW(3:3))-TabloSatırıBaşlangıcı,4),\"\")","v":""}]
[null,null,{"$f":"IFERROR(INDEX(tblEvents[],SMALL(IF(Tarihler=C$31,ROW(Tarihler)),ROW(4:4))-TabloSatırıBaşlangıcı,4),\"\")","v":""},null,null,{"$f":"IFERROR(INDEX(tblEvents[],SMALL(IF(Tarihler=F$31,ROW(Tarihler)),ROW(4:4))-TabloSatırıBaşlangıcı,4),\"\")","v":""}]

{"sheet":"YAZDIRMA SÜRÜMÜ","index":2,"n_rows":35,"n_cols":21,"rows_kept":35,"merged":[[1,5,1,11],[30,8,34,20]]}
[]
[null,null,{"$f":"ViewYear","v":2016},null,null,{"$f":"ViewMonth","v":"TEMMUZ"},0,0,0,0,0,0]
[]
[null,null,"PZT",null,null,"SAL",null,null,"ÇAR",null,null,"PER",null,null,"CUM",null,null,"CTS",null,null,"PAZ"]
[]
[null,null,{"$f":"TAKVİM!C6","v":"2016-06-27"},{"$f":"TAKVİM!D6","v":0},{"$f":"TAKVİM!E6","v":0},{"$f":"TAKVİM!F6","v":"2016-06-28"},{"$f":"TAKVİM!G6","v":0},{"$f":"TAKVİM!H6","v":0},{"$f":"TAKVİM!I6","v":"2016-06-29"},{"$f":"TAKVİM!J6","v":0},{"$f":"TAKVİM!K6","v":0},{"$f":"TAKVİM!L6","v":"2016-06-30"},{"$f":"TAKVİM!M6","v":0},{"$f":"TAKVİM!N6","v":0},{"$f":"TAKVİM!O6","v":"2016-07-01"},{"$f":"TAKVİM!P6","v":0},{"$f":"TAKVİM!Q6","v":0},{"$f":"TAKVİM!R6","v":"2016-07-02"},{"$f":"TAKVİM!S6","v":0},{"$f":"TAKVİM!T6","v":0},{"$f":"TAKVİM!U6","v":"2016-07-03"}]
[null,null,{"$f":"TAKVİM!C7","v":""},{"$f":"TAKVİM!D7","v":0},{"$f":"TAKVİM!E7","v":0},{"$f":"TAKVİM!F7","v":""},{"$f":"TAKVİM!G7","v":0},{"$f":"TAKVİM!H7","v":0},{"$f":"TAKVİM!I7","v":""},{"$f":"TAKVİM!J7","v":0},{"$f":"TAKVİM!K7","v":0},{"$f":"TAKVİM!L7","v":""},{"$f":"TAKVİM!M7","v":0},{"$f":"TAKVİM!N7","v":0},{"$f":"TAKVİM!O7","v":"Hobi Bahçesi"},{"$f":"TAKVİM!P7","v":0},{"$f":"TAKVİM!Q7","v":0},{"$f":"TAKVİM!R7","v":"Hobi Bahçesi"},{"$f":"TAKVİM!S7","v":0},{"$f":"TAKVİM!T7","v":0},{"$f":"TAKVİM!U7","v":"Parkta Film Gecesi"}]
[null,null,{"$f":"TAKVİM!C8","v":""},{"$f":"TAKVİM!D8","v":"00:00:00"},{"$f":"TAKVİM!E8","v":"00:00:00"},{"$f":"TAKVİM!F8","v":""},{"$f":"TAKVİM!G8","v":"00:00:00"},{"$f":"TAKVİM!H8","v":"00:00:00"},{"$f":"TAKVİM!I8","v":""},{"$f":"TAKVİM!J8","v":"00:00:00"},{"$f":"TAKVİM!K8","v":"00:00:00"},{"$f":"TAKVİM!L8","v":""},{"$f":"TAKVİM!M8","v":"00:00:00"},{"$f":"TAKVİM!N8","v":"00:00:00"},{"$f":"TAKVİM!O8","v":"Şehir Meclisi"},{"$f":"TAKVİM!P8","v":"00:00:00"},{"$f":"TAKVİM!Q8","v":"00:00:00"},{"$f":"TAKVİM!R8","v":""},{"$f":"TAKVİM!S8","v":"00:00:00"},{"$f":"TAKVİM!T8","v":"00:00:00"},{"$f":"TAKVİM!U8","v":""}]
[null,null,{"$f":"TAKVİM!C9","v":""},{"$f":"TAKVİM!D9","v":0},{"$f":"TAKVİM!E9","v":0},{"$f":"TAKVİM!F9","v":""},{"$f":"TAKVİM!G9","v":0},{"$f":"TAKVİM!H9","v":0},{"$f":"TAKVİM!I9","v":""},{"$f":"TAKVİM!J9","v":0},{"$f":"TAKVİM!K9","v":0},{"$f":"TAKVİM!L9","v":""},{"$f":"TAKVİM!M9","v":0},{"$f":"TAKVİM!N9","v":0},{"$f":"TAKVİM!O9","v":""},{"$f":"TAKVİM!P9","v":0},{"$f":"TAKVİM!Q9","v":0},{"$f":"TAKVİM!R9","v":""},{"$f":"TAKVİM!S9","v":0},{"$f":"TAKVİM!T9","v":0},{"$f":"TAKVİM!U9","v":""}]
[null,null,{"$f":"TAKVİM!C10","v":""},{"$f":"TAKVİM!D10","v":0},{"$f":"TAKVİM!E10","v":0},{"$f":"TAKVİM!F10","v":""},{"$f":"TAKVİM!G10","v":0},{"$f":"TAKVİM!H10","v":0},{"$f":"TAKVİM!I10","v":""},{"$f":"TAKVİM!J10","v":0},{"$f":"TAKVİM!K10","v":0},{"$f":"TAKVİM!L10","v":""},{"$f":"TAKVİM!M10","v":0},{"$f":"TAKVİM!N10","v":0},{"$f":"TAKVİM!O10","v":""},{"$f":"TAKVİM!P10","v":0},{"$f":"TAKVİM!Q10","v":0},{"$f":"TAKVİM!R10","v":""},{"$f":"TAKVİM!S10","v":0},{"$f":"TAKVİM!T10","v":0},{"$f":"TAKVİM!U10","v":""}]
[null,null,{"$f":"TAKVİM!C11","v":"2016-07-04"},{"$f":"TAKVİM!D11","v":0},{"$f":"TAKVİM!E11","v":0},{"$f":"TAKVİM!F11","v":"2016-07-05"},{"$f":"TAKVİM!G11","v":0},{"$f":"TAKVİM!H11","v":0},{"$f":"TAKVİM!I11","v":"2016-07-06"},{"$f":"TAKVİM!J11","v":0},{"$f":"TAKVİM!K11","v":0},{"$f":"TAKVİM!L11","v":"2016-07-07"},{"$f":"TAKVİM!M11","v":0},{"$f":"TAKVİM!N11","v":0},{"$f":"TAKVİM!O11","v":"2016-07-08"},{"$f":"TAKVİM!P11","v":0},{"$f":"TAKVİM!Q11","v":0},{"$f":"TAKVİM!R11","v":"2016-07-09"},{"$f":"TAKVİM!S11","v":0},{"$f":"TAKVİM!T11","v":0},{"$f":"TAKVİM!U11","v":"2016-07-10"}]
[null,null,{"$f":"TAKVİM!C12","v":""},{"$f":"TAKVİM!D12","v":0},{"$f":"TAKVİM!E12","v":0},{"$f":"TAKVİM!F12","v":""},{"$f":"TAKVİM!G12","v":0},{"$f":"TAKVİM!H12","v":0},{"$f":"TAKVİM!I12","v":""},{"$f":"TAKVİM!J12","v":0},{"$f":"TAKVİM!K12","v":0},{"$f":"TAKVİM!L12","v":""},{"$f":"TAKVİM!M12","v":0},{"$f":"TAKVİM!N12","v":0},{"$f":"TAKVİM!O12","v":"Şehir Meclisi"},{"$f":"TAKVİM!P12","v":0},{"$f":"TAKVİM!Q12","v":0},{"$f":"TAKVİM!R12","v":""},{"$f":"TAKVİM!S12","v":0},{"$f":"TAKVİM!T12","v":0},{"$f":"TAKVİM!U12","v":""}]
[null,null,{"$f":"TAKVİM!C13","v":""},{"$f":"TAKVİM!D13","v":0},{"$f":"TAKVİM!E13","v":0},{"$f":"TAKVİM!F13","v":""},{"$f":"TAKVİM!G13","v":0},{"$f":"TAKVİM!H13","v":0},{"$f":"TAKVİM!I13","v":""},{"$f":"TAKVİM!J13","v":0},{"$f":"TAKVİM!K13","v":0},{"$f":"TAKVİM!L13","v":""},{"$f":"TAKVİM!M13","v":0},{"$f":"TAKVİM!N13","v":0},{"$f":"TAKVİM!O13","v":""},{"$f":"TAKVİM!P13","v":0},{"$f":"TAKVİM!Q13","v":0},{"$f":"TAKVİM!R13","v":""},{"$f":"TAKVİM!S13","v":0},{"$f":"TAKVİM!T13","v":0},{"$f":"TAKVİM!U13","v":""}]
[null,null,{"$f":"TAKVİM!C14","v":""},{"$f":"TAKVİM!D14","v":0},{"$f":"TAKVİM!E14","v":0},{"$f":"TAKVİM!F14","v":""},{"$f":"TAKVİM!G14","v":0},{"$f":"TAKVİM!H14","v":0},{"$f":"TAKVİM!I14","v":""},{"$f":"TAKVİM!J14","v":0},{"$f":"TAKVİM!K14","v":0},{"$f":"TAKVİM!L14","v":""},{"$f":"TAKVİM!M14","v":0},{"$f":"TAKVİM!N14","v":0},{"$f":"TAKVİM!O14","v":""},{"$f":"TAKVİM!P14","v":0},{"$f":"TAKVİM!Q14","v":0},{"$f":"TAKVİM!R14","v":""},{"$f":"TAKVİM!S14","v":0},{"$f":"TAKVİM!T14","v":0},{"$f":"TAKVİM!U14","v":""}]
[null,null,{"$f":"TAKVİM!C15","v":""},{"$f":"TAKVİM!D15","v":0},{"$f":"TAKVİM!E15","v":0},{"$f":"TAKVİM!F15","v":""},{"$f":"TAKVİM!G15","v":0},{"$f":"TAKVİM!H15","v":0},{"$f":"TAKVİM!I15","v":""},{"$f":"TAKVİM!J15","v":0},{"$f":"TAKVİM!K15","v":0},{"$f":"TAKVİM!L15","v":""},{"$f":"TAKVİM!M15","v":0},{"$f":"TAKVİM!N15","v":0},{"$f":"TAKVİM!O15","v":""},{"$f":"TAKVİM!P15","v":0},{"$f":"TAKVİM!Q15","v":0},{"$f":"TAKVİM!R15","v":""},{"$f":"TAKVİM!S15","v":0},{"$f":"TAKVİM!T15","v":0},{"$f":"TAKVİM!U15","v":""}]
[null,null,{"$f":"TAKVİM!C16","v":"2016-07-11"},{"$f":"TAKVİM!D16","v":0},{"$f":"TAKVİM!E16","v":0},{"$f":"TAKVİM!F16","v":"2016-07-12"},{"$f":"TAKVİM!G16","v":0},{"$f":"TAKVİM!H16","v":0},{"$f":"TAKVİM!I16","v":"2016-07-13"},{"$f":"TAKVİM!J16","v":0},{"$f":"TAKVİM!K16","v":0},{"$f":"TAKVİM!L16","v":"2016-07-14"},{"$f":"TAKVİM!M16","v":0},{"$f":"TAKVİM!N16","v":0},{"$f":"TAKVİM!O16","v":"2016-07-15"},{"$f":"TAKVİM!P16","v":0},{"$f":"TAKVİM!Q16","v":0},{"$f":"TAKVİM!R16","v":"2016-07-16"},{"$f":"TAKVİM!S16","v":0},{"$f":"TAKVİM!T16","v":0},{"$f":"TAKVİM!U16","v":"2016-07-17"}]
[null,null,{"$f":"TAKVİM!C17","v":"Ticaret Odası Öğle Yemeği"},{"$f":"TAKVİM!D17","v":0},{"$f":"TAKVİM!E17","v":0},{"$f":"TAKVİM!F17","v":"Eski Eserler Gösterisi"},{"$f":"TAKVİM!G17","v":0},{"$f":"TAKVİM!H17","v":0},{"$f":"TAKVİM!I17","v":""},{"$f":"TAKVİM!J17","v":0},{"$f":"TAKVİM!K17","v":0},{"$f":"TAKVİM!L17","v":"Topluluk Çalıştayı"},{"$f":"TAKVİM!M17","v":0},{"$f":"TAKVİM!N17","v":0},{"$f":"TAKVİM!O17","v":"Şehir Meclisi"},{"$f":"TAKVİM!P17","v":0},{"$f":"TAKVİM!Q17","v":0},{"$f":"TAKVİM!R17","v":""},{"$f":"TAKVİM!S17","v":0},{"$f":"TAKVİM!T17","v":0},{"$f":"TAKVİM!U17","v":""}]
[null,null,{"$f":"TAKVİM!C18","v":""},{"$f":"TAKVİM!D18","v":0},{"$f":"TAKVİM!E18","v":0},{"$f":"TAKVİM!F18","v":""},{"$f":"TAKVİM!G18","v":0},{"$f":"TAKVİM!H18","v":0},{"$f":"TAKVİM!I18","v":""},{"$f":"TAKVİM!J18","v":0},{"$f":"TAKVİM!K18","v":0},{"$f":"TAKVİM!L18","v":""},{"$f":"TAKVİM!M18","v":0},{"$f":"TAKVİM!N18","v":0},{"$f":"TAKVİM!O18","v":""},{"$f":"TAKVİM!P18","v":0},{"$f":"TAKVİM!Q18","v":0},{"$f":"TAKVİM!R18","v":""},{"$f":"TAKVİM!S18","v":0},{"$f":"TAKVİM!T18","v":0},{"$f":"TAKVİM!U18","v":""}]
[null,null,{"$f":"TAKVİM!C19","v":""},{"$f":"TAKVİM!D19","v":0},{"$f":"TAKVİM!E19","v":0},{"$f":"TAKVİM!F19","v":""},{"$f":"TAKVİM!G19","v":0},{"$f":"TAKVİM!H19","v":0},{"$f":"TAKVİM!I19","v":""},{"$f":"TAKVİM!J19","v":0},{"$f":"TAKVİM!K19","v":0},{"$f":"TAKVİM!L19","v":""},{"$f":"TAKVİM!M19","v":0},{"$f":"TAKVİM!N19","v":0},{"$f":"TAKVİM!O19","v":""},{"$f":"TAKVİM!P19","v":0},{"$f":"TAKVİM!Q19","v":0},{"$f":"TAKVİM!R19","v":""},{"$f":"TAKVİM!S19","v":0},{"$f":"TAKVİM!T19","v":0},{"$f":"TAKVİM!U19","v":""}]
[null,null,{"$f":"TAKVİM!C20","v":""},{"$f":"TAKVİM!D20","v":0},{"$f":"TAKVİM!E20","v":0},{"$f":"TAKVİM!F20","v":""},{"$f":"TAKVİM!G20","v":0},{"$f":"TAKVİM!H20","v":0},{"$f":"TAKVİM!I20","v":""},{"$f":"TAKVİM!J20","v":0},{"$f":"TAKVİM!K20","v":0},{"$f":"TAKVİM!L20","v":""},{"$f":"TAKVİM!M20","v":0},{"$f":"TAKVİM!N20","v":0},{"$f":"TAKVİM!O20","v":""},{"$f":"TAKVİM!P20","v":0},{"$f":"TAKVİM!Q20","v":0},{"$f":"TAKVİM!R20","v":""},{"$f":"TAKVİM!S20","v":0},{"$f":"TAKVİM!T20","v":0},{"$f":"TAKVİM!U20","v":""}]
[null,null,{"$f":"TAKVİM!C21","v":"2016-07-18"},{"$f":"TAKVİM!D21","v":0},{"$f":"TAKVİM!E21","v":0},{"$f":"TAKVİM!F21","v":"2016-07-19"},{"$f":"TAKVİM!G21","v":0},{"$f":"TAKVİM!H21","v":0},{"$f":"TAKVİM!I21","v":"2016-07-20"},{"$f":"TAKVİM!J21","v":0},{"$f":"TAKVİM!K21","v":0},{"$f":"TAKVİM!L21","v":"2016-07-21"},{"$f":"TAKVİM!M21","v":0},{"$f":"TAKVİM!N21","v":0},{"$f":"TAKVİM!O21","v":"2016-07-22"},{"$f":"TAKVİM!P21","v":0},{"$f":"TAKVİM!Q21","v":0},{"$f":"TAKVİM!R21","v":"2016-07-23"},{"$f":"TAKVİM!S21","v":0},{"$f":"TAKVİM!T21","v":0},{"$f":"TAKVİM!U21","v":"2016-07-24"}]
[null,null,{"$f":"TAKVİM!C22","v":""},{"$f":"TAKVİM!D22","v":0},{"$f":"TAKVİM!E22","v":0},{"$f":"TAKVİM!F22","v":"Stratejik Planlama Çalıştayı"},{"$f":"TAKVİM!G22","v":0},{"$f":"TAKVİM!H22","v":0},{"$f":"TAKVİM!I22","v":"Park Temizliği"},{"$f":"TAKVİM!J22","v":0},{"$f":"TAKVİM!K22","v":0},{"$f":"TAKVİM!L22","v":""},{"$f":"TAKVİM!M22","v":0},{"$f":"TAKVİM!N22","v":0},{"$f":"TAKVİM!O22","v":"Şehir Meclisi"},{"$f":"TAKVİM!P22","v":0},{"$f":"TAKVİM!Q22","v":0},{"$f":"TAKVİM!R22","v":""},{"$f":"TAKVİM!S22","v":0},{"$f":"TAKVİM!T22","v":0},{"$f":"TAKVİM!U22","v":""}]
[null,null,{"$f":"TAKVİM!C23","v":""},{"$f":"TAKVİM!D23","v":0},{"$f":"TAKVİM!E23","v":0},{"$f":"TAKVİM!F23","v":""},{"$f":"TAKVİM!G23","v":0},{"$f":"TAKVİM!H23","v":0},{"$f":"TAKVİM!I23","v":""},{"$f":"TAKVİM!J23","v":0},{"$f":"TAKVİM!K23","v":0},{"$f":"TAKVİM!L23","v":""},{"$f":"TAKVİM!M23","v":0},{"$f":"TAKVİM!N23","v":0},{"$f":"TAKVİM!O23","v":""},{"$f":"TAKVİM!P23","v":0},{"$f":"TAKVİM!Q23","v":0},{"$f":"TAKVİM!R23","v":""},{"$f":"TAKVİM!S23","v":0},{"$f":"TAKVİM!T23","v":0},{"$f":"TAKVİM!U23","v":""}]
[null,null,{"$f":"TAKVİM!C24","v":""},{"$f":"TAKVİM!D24","v":0},{"$f":"TAKVİM!E24","v":0},{"$f":"TAKVİM!F24","v":""},{"$f":"TAKVİM!G24","v":0},{"$f":"TAKVİM!H24","v":0},{"$f":"TAKVİM!I24","v":""},{"$f":"TAKVİM!J24","v":0},{"$f":"TAKVİM!K24","v":0},{"$f":"TAKVİM!L24","v":""},{"$f":"TAKVİM!M24","v":0},{"$f":"TAKVİM!N24","v":0},{"$f":"TAKVİM!O24","v":""},{"$f":"TAKVİM!P24","v":0},{"$f":"TAKVİM!Q24","v":0},{"$f":"TAKVİM!R24","v":""},{"$f":"TAKVİM!S24","v":0},{"$f":"TAKVİM!T24","v":0},{"$f":"TAKVİM!U24","v":""}]
[null,null,{"$f":"TAKVİM!C25","v":""},{"$f":"TAKVİM!D25","v":0},{"$f":"TAKVİM!E25","v":0},{"$f":"TAKVİM!F25","v":""},{"$f":"TAKVİM!G25","v":0},{"$f":"TAKVİM!H25","v":0},{"$f":"TAKVİM!I25","v":""},{"$f":"TAKVİM!J25","v":0},{"$f":"TAKVİM!K25","v":0},{"$f":"TAKVİM!L25","v":""},{"$f":"TAKVİM!M25","v":0},{"$f":"TAKVİM!N25","v":0},{"$f":"TAKVİM!O25","v":""},{"$f":"TAKVİM!P25","v":0},{"$f":"TAKVİM!Q25","v":0},{"$f":"TAKVİM!R25","v":""},{"$f":"TAKVİM!S25","v":0},{"$f":"TAKVİM!T25","v":0},{"$f":"TAKVİM!U25","v":""}]
[null,null,{"$f":"TAKVİM!C26","v":"2016-07-25"},{"$f":"TAKVİM!D26","v":0},{"$f":"TAKVİM!E26","v":0},{"$f":"TAKVİM!F26","v":"2016-07-26"},{"$f":"TAKVİM!G26","v":0},{"$f":"TAKVİM!H26","v":0},{"$f":"TAKVİM!I26","v":"2016-07-27"},{"$f":"TAKVİM!J26","v":0},{"$f":"TAKVİM!K26","v":0},{"$f":"TAKVİM!L26","v":"2016-07-28"},{"$f":"TAKVİM!M26","v":0},{"$f":"TAKVİM!N26","v":0},{"$f":"TAKVİM!O26","v":"2016-07-29"},{"$f":"TAKVİM!P26","v":0},{"$f":"TAKVİM!Q26","v":0},{"$f":"TAKVİM!R26","v":"2016-07-30"},{"$f":"TAKVİM!S26","v":0},{"$f":"TAKVİM!T26","v":0},{"$f":"TAKVİM!U26","v":"2016-07-31"}]
[null,null,{"$f":"TAKVİM!C27","v":""},{"$f":"TAKVİM!D27","v":0},{"$f":"TAKVİM!E27","v":0},{"$f":"TAKVİM!F27","v":"Şehir Merkezinde Yürüyüş Turu"},{"$f":"TAKVİM!G27","v":0},{"$f":"TAKVİM!H27","v":0},{"$f":"TAKVİM!I27","v":""},{"$f":"TAKVİM!J27","v":0},{"$f":"TAKVİM!K27","v":0},{"$f":"TAKVİM!L27","v":""},{"$f":"TAKVİM!M27","v":0},{"$f":"TAKVİM!N27","v":0},{"$f":"TAKVİM!O27","v":"Şehir Meclisi"},{"$f":"TAKVİM!P27","v":0},{"$f":"TAKVİM!Q27","v":0},{"$f":"TAKVİM!R27","v":""},{"$f":"TAKVİM!S27","v":0},{"$f":"TAKVİM!T27","v":0},{"$f":"TAKVİM!U27","v":""}]
[null,null,{"$f":"TAKVİM!C28","v":""},{"$f":"TAKVİM!D28","v":0},{"$f":"TAKVİM!E28","v":0},{"$f":"TAKVİM!F28","v":"Barlarda Gezinme"},{"$f":"TAKVİM!G28","v":0},{"$f":"TAKVİM!H28","v":0},{"$f":"TAKVİM!I28","v":""},{"$f":"TAKVİM!J28","v":0},{"$f":"TAKVİM!K28","v":0},{"$f":"TAKVİM!L28","v":""},{"$f":"TAKVİM!M28","v":0},{"$f":"TAKVİM!N28","v":0},{"$f":"TAKVİM!O28","v":""},{"$f":"TAKVİM!P28","v":0},{"$f":"TAKVİM!Q28","v":0},{"$f":"TAKVİM!R28","v":""},{"$f":"TAKVİM!S28","v":0},{"$f":"TAKVİM!T28","v":0},{"$f":"TAKVİM!U28","v":""}]
[null,null,{"$f":"TAKVİM!C29","v":""},{"$f":"TAKVİM!D29","v":0},{"$f":"TAKVİM!E29","v":0},{"$f":"TAKVİM!F29","v":""},{"$f":"TAKVİM!G29","v":0},{"$f":"TAKVİM!H29","v":0},{"$f":"TAKVİM!I29","v":""},{"$f":"TAKVİM!J29","v":0},{"$f":"TAKVİM!K29","v":0},{"$f":"TAKVİM!L29","v":""},{"$f":"TAKVİM!M29","v":0},{"$f":"TAKVİM!N29","v":0},{"$f":"TAKVİM!O29","v":""},{"$f":"TAKVİM!P29","v":0},{"$f":"TAKVİM!Q29","v":0},{"$f":"TAKVİM!R29","v":""},{"$f":"TAKVİM!S29","v":0},{"$f":"TAKVİM!T29","v":0},{"$f":"TAKVİM!U29","v":""}]
[null,null,{"$f":"TAKVİM!C30","v":""},{"$f":"TAKVİM!D30","v":0},{"$f":"TAKVİM!E30","v":0},{"$f":"TAKVİM!F30","v":""},{"$f":"TAKVİM!G30","v":0},{"$f":"TAKVİM!H30","v":0},{"$f":"TAKVİM!I30","v":""},{"$f":"TAKVİM!J30","v":0},{"$f":"TAKVİM!K30","v":0},{"$f":"TAKVİM!L30","v":""},{"$f":"TAKVİM!M30","v":0},{"$f":"TAKVİM!N30","v":0},{"$f":"TAKVİM!O30","v":""},{"$f":"TAKVİM!P30","v":0},{"$f":"TAKVİM!Q30","v":0},{"$f":"TAKVİM!R30","v":""},{"$f":"TAKVİM!S30","v":0},{"$f":"TAKVİM!T30","v":0},{"$f":"TAKVİM!U30","v":""}]
[null,null,{"$f":"TAKVİM!C31","v":"2016-08-01"},{"$f":"TAKVİM!D31","v":0},{"$f":"TAKVİM!E31","v":0},{"$f":"TAKVİM!F31","v":"2016-08-02"},null,null,{"$f":"TAKVİM!I31","v":"NOTLAR:"}]
[null,null,{"$f":"TAKVİM!C32","v":""},{"$f":"TAKVİM!D32","v":0},{"$f":"TAKVİM!E32","v":0},{"$f":"TAKVİM!F32","v":""}]
[null,null,{"$f":"TAKVİM!C33","v":""},{"$f":"TAKVİM!D33","v":0},{"$f":"TAKVİM!E33","v":0},{"$f":"TAKVİM!F33","v":""}]
[null,null,{"$f":"TAKVİM!C34","v":""},{"$f":"TAKVİM!D34","v":0},{"$f":"TAKVİM!E34","v":0},{"$f":"TAKVİM!F34","v":""}]
[null,null,{"$f":"TAKVİM!C35","v":""},{"$f":"TAKVİM!D35","v":0},{"$f":"TAKVİM!E35","v":0},{"$f":"TAKVİM!F35","v":""}]

{"sheet":"YÖNETİCİ","index":3,"n_rows":14,"n_cols":3,"rows_kept":14,"hidden":true}
[]
[null,"AY","SAYI"]
[null,"OCAK",1]
[null,"ŞUBAT",2]
[null,"MART",3]
[null,"NİSAN",4]
[null,"MAYIS",5]
[null,"HAZİRAN",6]
[null,"TEMMUZ",7]
[null,"AĞUSTOS",8]
[null,"EYLÜL",9]
[null,"EKİM",10]
[null,"KASIM",11]
[null,"ARALIK",12]